bitfinex-derivatives/quotes_BTCF0:USTF0_20240913
["timestamp","ask_amount","ask_price","bid_price","bid_amount"]
[1726254969222,0.19,59914.0,59911.0,0.0458]
[1726254969514,0.444219,59918.0,59911.0,0.0458]
[1726254969515,0.3608,59912.0,59911.0,0.0458]
[1726254969913,0.3608,59912.0,59908.0,0.083431]
[1726254970116,0.3608,59912.0,59904.0,0.5508]
[1726254970117,0.19,59910.0,59904.0,0.3608]
[1726254970303,0.5508,59905.0,59899.0,0.130044]
[1726254970506,0.00839399,59905.0,59899.0,0.130044]
[1726254970706,0.0684719,59908.0,59899.0,0.130044]
[1726254970918,0.0684719,59907.0,59899.0,0.130044]
[1726254971109,0.0684719,59908.0,59899.0,0.130044]
[1726254971315,0.3608,59911.0,59899.0,0.130044]
[1726254971316,0.3608,59904.0,59899.0,0.130044]
[1726254971503,0.36903533,59904.0,59899.0,0.158044]
[1726254971912,0.00823533,59904.0,59899.0,0.158044]
[1726254972119,0.001,59905.0,59899.0,0.158044]
[1726254972314,0.19,59909.0,59900.0,0.083443]
[1726254972526,0.001,59904.0,59900.0,0.083443]
[1726254972717,0.3618,59904.0,59900.0,0.083443]
[1726254972922,0.3618,59904.0,59901.0,0.083441]
[1726254973420,0.56017729,59904.0,59901.0,0.083441]
[1726254974218,0.56017729,59904.0,59900.0,0.014]
[1726254974421,0.56017729,59904.0,59901.0,0.012]
[1726254974810,0.56117729,59904.0,59901.0,0.025]
[1726254975227,0.64461529,59904.0,59901.0,0.025]
[1726254976031,0.5496,59903.0,59901.0,0.025]
[1726254976519,0.5008,59902.0,59901.0,0.014]
[1726254977017,1.1008,59902.0,59901.0,0.001]
[1726254977225,1.1008,59902.0,59901.0,0.002]
[1726254977824,1.1088,59902.0,59901.0,0.002]
[1726254978220,1.20124,59902.0,59901.0,0.002]
[1726254978620,1.19324,59902.0,59901.0,0.001]
[1726254978826,1.20124,59902.0,59901.0,0.002]
[1726254979123,1.20124,59902.0,59890.0,0.0039]
[1726254979124,0.50084,59901.0,59890.0,0.0039]
[1726254979335,0.9116,59891.0,59883.0,0.0039]
[1726254979531,0.5508,59884.0,59877.0,0.0468]
[1726254979826,0.19,59878.0,59877.0,0.0468]
[1726254980833,0.0451,59883.0,59881.0,0.083469]
[1726254982539,0.3608,59884.0,59880.0,0.19]
[1726254982725,0.3608,59884.0,59883.0,0.273466]
[1726254982926,0.3608,59884.0,59883.0,0.083466]
[1726254983127,0.3608,59897.0,59883.0,0.69096]
[1726254983323,0.3608,59897.0,59894.0,0.083451]
[1726254983530,0.3608,59897.0,59896.0,0.083448]
[1726254983928,0.37020033,59897.0,59896.0,0.083448]
[1726254984228,0.37020033,59897.0,59895.0,0.0457]
[1726254984628,0.38320033,59897.0,59896.0,0.001]
[1726254984822,0.39320033,59897.0,59896.0,0.002]
[1726254986034,0.39320033,59897.0,59896.0,0.085448]
[1726254986333,0.01440033,59897.0,59896.0,0.083448]
[1726254986534,0.01440033,59897.0,59896.0,0.273448]
[1726254986733,0.02740033,59897.0,59896.0,0.083448]
[1726254987832,0.01440033,59897.0,59896.0,0.083448]
[1726254988522,0.01840033,59897.0,59896.0,0.084448]
[1726254988727,0.009,59897.0,59896.0,0.084448]
[1726254989534,0.009,59897.0,59896.0,0.089448]
[1726254989937,0.009,59897.0,59896.0,0.084448]
[1726254990135,0.19939813,59903.0,59898.0,0.083445]
[1726254991540,0.56019813,59903.0,59898.0,0.083445]
[1726254991724,0.19,59899.0,59896.0,0.006]
[1726254991924,0.19,59899.0,59896.0,0.089448]
[1726254992337,0.19,59899.0,59898.0,0.001]
[1726254992932,0.19,59899.0,59897.0,0.083446]
[1726254993680,0.19,59899.0,59898.0,0.001]
[1726254994142,0.19,59899.0,59898.0,0.002]
[1726254994335,0.56019813,59903.0,59898.0,0.002]
[1726254994639,0.56019813,59903.0,59898.0,0.001]
[1726254995231,0.56019813,59903.0,59902.0,0.08344]
[1726254995232,0.37019813,59903.0,59902.0,0.08344]
[1726254995540,0.37019813,59903.0,59898.0,0.001]
[1726254996041,0.56019813,59903.0,59898.0,0.001]
[1726254996238,0.56019813,59903.0,59895.0,0.0457]
[1726254996239,0.004,59899.0,59895.0,0.0457]
[1726254996542,0.004,59899.0,59897.0,0.083446]
[1726254996739,0.002,59899.0,59898.0,0.001]
[1726254996943,0.56227814,59903.0,59898.0,0.001]
[1726254997143,0.56019813,59903.0,59898.0,0.085445]
[1726254997334,0.001,59899.0,59898.0,0.084445]
[1726254997737,0.001,59899.0,59898.0,0.083445]
[1726254998039,0.191,59899.0,59898.0,0.002]
[1726254998943,0.19,59899.0,59898.0,0.002]
[1726254999141,0.19,59899.0,59898.0,0.004]
[1726254999534,0.19,59899.0,59898.0,0.001]
[1726254999735,0.197,59899.0,59898.0,0.002]
[1726255000234,0.194,59899.0,59895.0,0.129149]
[1726255000944,0.192,59899.0,59895.0,0.0457]
[1726255001136,0.198,59899.0,59898.0,0.001]
[1726255001341,0.198,59899.0,59887.0,0.3608]
[1726255001342,1.65964,59899.0,59887.0,0.3608]
[1726255001535,0.19,59888.0,59887.0,0.444261]
[1726255002838,0.5508,59892.0,59889.0,0.083457]
[1726255003146,0.3608,59891.0,59885.0,0.3707]
[1726255003341,0.19,59887.0,59885.0,0.0457]
[1726255004639,0.3608,59886.0,59885.0,0.0457]
[1726255006037,0.3608,59886.0,59885.0,0.0467]
[1726255006239,0.3608,59886.0,59885.0,0.0477]
[1726255006747,0.3608,59886.0,59885.0,0.002]
[1726255009144,0.19,59887.0,59885.0,0.002]
[1726255009832,0.3608,59886.0,59885.0,0.002]
[1726255010049,0.3608,59886.0,59885.0,0.001]
[1726255010239,0.3608,59886.0,59885.0,0.002]
[1726255013355,0.3608,59886.0,59885.0,0.085464]
[1726255013854,0.0093395,59891.0,59890.0,0.083457]
[1726255014053,0.0093395,59891.0,59885.0,0.3628]
[1726255014054,0.3608,59892.0,59891.0,0.083455]
[1726255014743,0.37017889,59892.0,59891.0,0.083455]
[1726255015752,0.37017889,59892.0,59891.0,0.084455]
[1726255015753,0.37517889,59892.0,59891.0,0.084455]
[1726255016448,0.01437889,59892.0,59891.0,0.084455]
[1726255016656,0.01937889,59892.0,59891.0,0.084455]
[1726255016840,0.01437889,59892.0,59891.0,0.086455]
[1726255018551,0.01937889,59892.0,59891.0,0.084455]
[1726255018753,0.01437889,59892.0,59891.0,0.001]
[1726255019053,0.01037889,59892.0,59891.0,0.093455]
[1726255019551,0.01137889,59892.0,59891.0,0.097455]
[1726255019756,0.01037889,59892.0,59891.0,0.090455]
[1726255019949,0.01537889,59892.0,59891.0,0.090455]
[1726255020249,0.37617889,59892.0,59891.0,0.007]
[1726255020642,0.37217889,59892.0,59891.0,0.007]
[1726255021153,1.55655289,59892.0,59879.0,0.129271]
[1726255021526,0.19,59880.0,59879.0,0.129171]
[1726255021949,0.19,59884.0,59879.0,0.129171]
[1726255022254,0.0496,59886.0,59882.0,0.083468]
[1726255022556,0.19,59884.0,59879.0,0.129172]
[1726255023041,0.191,59884.0,59879.0,0.145172]
[1726255023844,0.191,59884.0,59881.0,0.083468]
[1726255024262,0.001,59884.0,59879.0,0.0617]
[1726255024447,0.001,59884.0,59883.0,0.083466]
[1726255024651,0.00943622,59886.0,59885.0,0.083464]
[1726255024962,0.0039,59893.0,59892.0,0.083454]
[1726255025158,0.19,59896.0,59892.0,0.083454]
[1726255025646,0.19,59896.0,59893.0,0.0454]
[1726255026758,0.196,59896.0,59893.0,0.0454]
[1726255026953,0.2052545,59896.0,59893.0,0.0454]
[1726255027157,0.0152545,59896.0,59893.0,0.0454]
[1726255027353,0.0092545,59896.0,59893.0,0.0454]
[1726255027652,0.014,59896.0,59895.0,0.08345]
[1726255028044,0.015,59896.0,59895.0,0.08345]
[1726255028650,0.011,59896.0,59895.0,0.08345]
[1726255029049,0.004,59896.0,59895.0,0.08345]
[1726255029255,0.009,59896.0,59895.0,0.08345]
[1726255029956,0.011,59896.0,59895.0,0.08345]
[1726255030563,0.011,59896.0,59893.0,0.0454]
[1726255031044,0.011,59896.0,59893.0,0.128852]
[1726255031449,0.19,59894.0,59893.0,0.0454]
[1726255032658,0.007,59896.0,59893.0,0.0454]
[1726255032857,0.007,59896.0,59894.0,0.083451]
[1726255033069,0.004,59896.0,59895.0,0.08345]
[1726255033561,0.004,59896.0,59893.0,0.0454]
[1726255033952,0.004,59894.0,59893.0,0.0454]
[1726255034461,0.006,59896.0,59893.0,0.0454]
[1726255034853,0.006,59896.0,59893.0,0.128852]
[1726255035158,0.004,59894.0,59893.0,0.128852]
[1726255035752,0.004,59894.0,59893.0,0.489652]
[1726255036456,0.007,59894.0,59893.0,0.489652]
[1726255036754,0.003,59894.0,59893.0,0.489652]
[1726255037357,0.05985873,59894.0,59893.0,0.489652]
[1726255037564,0.00837729,59904.0,59903.0,0.083439]
[1726255037858,0.3608,59913.0,59903.0,0.5508]
[1726255038047,0.37031178,59913.0,59903.0,0.5508]
[1726255038248,0.19,59912.0,59907.0,0.083432]
[1726255038455,0.634233,59908.0,59901.0,0.08344]
[1726255038661,0.3608,59908.0,59898.0,0.0491]
[1726255038853,0.3608,59908.0,59904.0,0.083437]
[1726255039054,0.3608,59908.0,59905.0,0.0468]
[1726255039659,0.3608,59908.0,59906.0,0.083434]
[1726255039960,0.3698,59908.0,59906.0,0.083434]
[1726255040264,0.01851736,59908.0,59906.0,0.083434]
[1726255040458,0.03251736,59908.0,59906.0,0.083434]
[1726255040757,0.03251736,59908.0,59907.0,0.273433]
[1726255040964,0.0923727,59908.0,59907.0,0.634233]
[1726255041554,0.0863727,59908.0,59907.0,0.634233]
[1726255041963,0.02651736,59908.0,59907.0,0.634233]
[1726255042164,0.02651736,59908.0,59907.0,0.444233]
[1726255042357,0.02651736,59908.0,59907.0,0.445233]
[1726255043167,0.02151736,59908.0,59907.0,0.446233]
[1726255044255,0.01251736,59908.0,59907.0,0.445233]
[1726255044459,0.02151736,59908.0,59907.0,0.446233]
[1726255045867,0.02151736,59908.0,59907.0,0.636233]
[1726255046058,0.06375534,59918.0,59917.0,0.083419]
[1726255046059,0.0039,59918.0,59917.0,0.083419]
[1726255046260,0.3608,59933.0,59917.0,0.083419]
[1726255046261,0.3647,59928.0,59927.0,0.083405]
[1726255046566,0.3608,59928.0,59923.0,0.08341]
[1726255046763,0.3608,59928.0,59924.0,0.083409]
[1726255047059,0.3608,59928.0,59927.0,0.083405]
[1726255047456,0.3748,59928.0,59927.0,0.084405]
[1726255047654,0.38430852,59928.0,59927.0,0.084405]
[1726255048058,0.38430852,59928.0,59927.0,0.083405]
[1726255048059,0.37030852,59928.0,59927.0,0.083405]
[1726255048254,0.37030852,59928.0,59927.0,0.084405]
[1726255048255,0.02350852,59928.0,59927.0,0.084405]
[1726255049366,0.02650852,59928.0,59927.0,0.085405]
[1726255049765,0.01650852,59928.0,59927.0,0.085405]
[1726255050865,0.01650852,59928.0,59927.0,0.002]
[1726255051076,0.18650852,59928.0,59927.0,0.002]
[1726255051566,0.01650852,59928.0,59927.0,0.085405]
[1726255054667,0.007,59928.0,59927.0,0.085405]
[1726255056367,0.003,59928.0,59927.0,0.084405]
[1726255056566,0.014,59928.0,59927.0,0.085405]
[1726255057769,0.011,59928.0,59927.0,0.085405]
[1726255059364,0.014,59928.0,59927.0,0.085405]
[1726255059572,0.014,59928.0,59927.0,0.002]
[1726255059992,0.014,59928.0,59927.0,0.085405]
[1726255059993,0.011,59928.0,59927.0,0.085405]
[1726255060473,0.003,59928.0,59927.0,0.084405]
[1726255060775,0.014,59928.0,59927.0,0.085405]
[1726255060976,0.014,59928.0,59927.0,0.002]
[1726255061180,0.011,59928.0,59927.0,0.002]
[1726255061969,0.011,59928.0,59927.0,0.085405]
[1726255062466,0.011,59928.0,59927.0,0.446205]
[1726255062668,0.011,59928.0,59927.0,0.52961]
[1726255062871,0.011,59928.0,59927.0,1.63021]
[1726255063086,0.0039,59938.0,59937.0,0.083391]
[1726255063311,0.3653,59952.0,59947.0,0.083377]
[1726255063312,0.0039,59948.0,59947.0,0.083377]
[1726255063579,0.3608,59952.0,59951.0,0.083372]
[1726255064273,0.37007631,59952.0,59951.0,0.083372]
[1726255065068,0.37007631,59952.0,59951.0,0.084372]
[1726255065279,0.00927631,59952.0,59951.0,0.445172]
[1726255065469,0.0459,59966.0,59951.0,0.445172]
[1726255065669,0.0039,59965.0,59956.0,0.083365]
[1726255065973,0.17,59963.0,59956.0,0.083365]
[1726255066474,0.17,59963.0,59952.0,0.0472]
[1726255066699,0.17,59963.0,59951.0,0.446171]
[1726255066700,0.17,59955.0,59951.0,0.445171]
[1726255067276,0.17,59955.0,59951.0,0.444171]
[1726255067573,0.17,59955.0,59951.0,0.445171]
[1726255069270,0.17,59955.0,59952.0,0.08337]
[1726255069472,0.172,59955.0,59952.0,0.08337]
[1726255070879,0.172,59955.0,59952.0,0.08437]
[1726255071069,0.172,59955.0,59952.0,0.08537]
[1726255072578,0.3608,59953.0,59952.0,0.002]
[1726255073176,1.4612,59953.0,59952.0,0.002]
[1726255073717,1.544569,59953.0,59952.0,0.002]
[1726255073883,1.52964697,59953.0,59952.0,0.002]
[1726255074079,1.53164697,59953.0,59952.0,0.002]
[1726255075079,0.43124697,59953.0,59952.0,0.002]
[1726255075275,0.3628,59953.0,59952.0,0.002]
[1726255076883,0.37216383,59953.0,59952.0,0.002]
[1726255080338,1.47256383,59953.0,59942.0,0.0039]
[1726255080598,0.17,59944.0,59940.0,0.083387]
[1726255080776,0.3608,59946.0,59940.0,0.083387]
[1726255080974,0.3608,59946.0,59941.0,0.3608]
[1726255081179,0.3608,59948.0,59943.0,0.083382]
[1726255081989,0.5308,59948.0,59943.0,0.083382]
[1726255082984,0.5308,59948.0,59937.0,0.17]
[1726255082985,0.001,59946.0,59937.0,0.17]
[1726255083176,0.00935696,59946.0,59937.0,0.17]
[1726255083376,0.001,59946.0,59944.0,0.08338]
[1726255083685,0.3648,59948.0,59946.0,0.083379]
[1726255083881,0.3648,59948.0,59947.0,0.0477]
[1726255084185,0.3608,59948.0,59947.0,0.0477]
[1726255084886,0.3608,59948.0,59947.0,0.131077]
[1726255085086,0.3628,59948.0,59947.0,0.132077]
[1726255085992,0.43124633,59948.0,59947.0,0.132077]
[1726255086283,0.60124633,59948.0,59947.0,0.0487]
[1726255086680,0.60124633,59948.0,59947.0,0.132077]
[1726255086681,0.43424633,59948.0,59947.0,0.132077]
[1726255087185,0.43424633,59948.0,59947.0,0.133077]
[1726255088086,0.43424633,59948.0,59947.0,0.0497]
[1726255089089,0.3658,59948.0,59947.0,0.0497]
[1726255089288,0.43424633,59948.0,59947.0,0.0497]
[1726255092686,0.07344633,59948.0,59947.0,0.0497]
[1726255093500,0.43424633,59948.0,59947.0,0.0497]
[1726255094012,0.005,59948.0,59947.0,0.002]
[1726255094298,0.175,59948.0,59947.0,0.002]
[1726255095085,0.5358,59948.0,59947.0,0.002]
[1726255095396,0.3658,59948.0,59947.0,0.002]
[1726255095695,0.005,59948.0,59947.0,0.002]
[1726255096292,0.3658,59948.0,59947.0,0.002]
[1726255098696,1.03624,59948.0,59936.0,0.130691]
[1726255098881,0.253383,59944.0,59936.0,0.0473]
[1726255099086,0.26167586,59944.0,59936.0,0.0473]
[1726255099897,0.26167586,59944.0,59936.0,0.0483]
[1726255100193,0.26167586,59944.0,59937.0,0.08339]
[1726255100194,0.17829286,59944.0,59937.0,0.08339]
[1726255100697,0.17829286,59944.0,59938.0,0.08339]
[1726255100898,0.00829286,59944.0,59936.0,0.0483]
[1726255101098,0.14553631,59943.0,59936.0,0.0483]
[1726255101397,0.14553631,59942.0,59936.0,0.0483]
[1726255101598,0.14553631,59941.0,59936.0,0.0483]
[1726255101794,0.06844797,59940.0,59936.0,0.0483]
[1726255102100,0.06844797,59939.0,59938.0,0.08339]
[1726255102400,0.62360522,59948.0,59938.0,0.08339]
[1726255102401,0.00818277,59947.0,59946.0,0.083379]
[1726255102601,0.087264,59957.0,59947.0,0.083377]
[1726255102786,0.0039,59953.0,59950.0,0.07503531]
[1726255102990,0.07708834,59952.0,59950.0,0.07503531]
[1726255103190,0.07708834,59951.0,59950.0,0.07503531]
[1726255103402,0.07708834,59952.0,59950.0,0.07503531]
[1726255104090,0.0039,59953.0,59950.0,0.07503531]
[1726255104493,0.06843662,59952.0,59950.0,0.07503531]
[1726255104790,0.06843662,59951.0,59950.0,0.07703531]
[1726255105195,0.06843662,59951.0,59950.0,0.07603531]
[1726255105499,0.0089,59953.0,59952.0,0.08337]
[1726255105799,0.0039,59953.0,59952.0,0.08337]
[1726255106900,0.0039,59953.0,59951.0,0.0493]
[1726255107095,0.0039,59953.0,59950.0,0.002]
[1726255107297,0.0464,59952.0,59950.0,0.002]
[1726255107499,0.0039,59953.0,59950.0,0.001]
[1726255107802,0.0039,59953.0,59952.0,0.25437]
[1726255107803,0.0069,59953.0,59952.0,0.25437]
[1726255108295,0.0089,59953.0,59952.0,0.25437]
[1726255109505,0.00949745,59957.0,59952.0,1.43814]
[1726255109700,0.00455,59968.0,59964.0,0.083354]
[1726255110005,5e-05,59968.0,59964.0,0.17]
[1726255110303,5e-05,59968.0,59967.0,0.08335]
[1726255110513,5e-05,59968.0,59964.0,0.17]
[1726255110796,5e-05,59968.0,59964.0,0.083354]
[1726255111003,5e-05,59968.0,59961.0,0.3608]
[1726255111304,5e-05,59968.0,59964.0,0.001]
[1726255111305,0.00305,59968.0,59964.0,0.001]
[1726255111600,0.08335,59967.0,59964.0,0.001]
[1726255111802,0.17,59966.0,59964.0,0.001]
[1726255112014,0.17,59966.0,59964.0,0.002]
[1726255112206,0.083352,59965.0,59964.0,0.001]
[1726255112399,0.17,59966.0,59964.0,0.001]
[1726255113811,0.17,59966.0,59948.0,0.1739]
[1726255113812,1.9452,59950.0,59949.0,0.408375]
[1726255114017,1.9452,59950.0,59949.0,0.083375]
[1726255114403,1.9452,59950.0,59949.0,1.183815]
[1726255115110,1.9452,59950.0,59949.0,0.584815]
[1726255115803,1.9452,59950.0,59949.0,1.231415]
[1726255116000,1.9452,59950.0,59949.0,0.631415]
[1726255116923,1.9452,59950.0,59949.0,0.130975]
[1726255117219,1.9452,59950.0,59949.0,0.177575]
[1726255118713,1.9462,59950.0,59949.0,0.178575]
[1726255119117,1.9462,59950.0,59949.0,0.679015]
[1726255120276,1.9462,59950.0,59949.0,1.278015]
[1726255120410,1.9482,59950.0,59949.0,1.279015]
[1726255120912,1.95754421,59950.0,59949.0,1.279015]
[1726255121902,1.95754421,59950.0,59949.0,1.278015]
[1726255122607,1.95754421,59950.0,59949.0,1.279015]
[1726255124709,1.95754421,59950.0,59949.0,0.178575]
[1726255125013,1.95754421,59950.0,59949.0,0.085375]
[1726255125114,2.04091721,59950.0,59949.0,0.002]
[1726255125312,2.10935198,59950.0,59949.0,0.002]
[1726255125513,2.02597898,59950.0,59949.0,0.084375]
[1726255126614,2.02597898,59950.0,59949.0,0.001]
[1726255126815,2.02497898,59950.0,59949.0,0.3618]
[1726255127018,2.02597898,59950.0,59949.0,0.3608]
[1726255127319,2.02497898,59950.0,59949.0,0.3608]
[1726255127924,2.02597898,59950.0,59949.0,0.3608]
[1726255128410,2.02497898,59950.0,59949.0,0.3608]
[1726255128714,2.02597898,59950.0,59949.0,0.3608]
[1726255129109,2.02597898,59950.0,59949.0,0.444175]
[1726255129315,2.02597898,59950.0,59949.0,0.614175]
[1726255129708,2.02597898,59950.0,59949.0,0.3608]
[1726255129918,2.02597898,59950.0,59939.0,0.490788]
[1726255129919,2.55677853,59950.0,59939.0,0.3608]
[1726255130126,0.06843432,59949.0,59939.0,0.3608]
[1726255130418,0.06843432,59949.0,59943.0,0.17]
[1726255131217,2.31942422,59950.0,59943.0,0.17]
[1726255131446,2.31734421,59950.0,59940.0,0.444186]
[1726255131718,2.31734421,59950.0,59941.0,0.083385]
[1726255132106,2.31734421,59950.0,59942.0,0.083384]
[1726255132316,2.31634421,59950.0,59942.0,0.083384]
[1726255132915,2.31534421,59950.0,59942.0,0.083384]
[1726255133107,0.17,59948.0,59943.0,0.003]
[1726255134219,0.44418,59945.0,59943.0,0.003]
[1726255134407,0.0497,59944.0,59943.0,0.003]
[1726255135035,0.0497,59944.0,59928.0,0.4097]
[1726255135036,0.083389,59939.0,59928.0,0.0489]
[1726255135321,0.3608,59936.0,59931.0,0.083399]
[1726255136223,0.3608,59936.0,59929.0,0.17]
[1726255136417,0.3608,59936.0,59931.0,0.011]
[1726255137822,0.0494,59938.0,59934.0,0.083394]
[1726255138028,0.0494,59938.0,59932.0,0.083398]
[1726255138417,0.0494,59938.0,59931.0,0.011]
[1726255138815,0.3608,59932.0,59931.0,0.011]
[1726255139015,0.5308,59932.0,59931.0,0.011]
[1726255139314,0.083401,59930.0,59920.0,0.3608]
[1726255139519,0.17,59927.0,59920.0,0.3608]
[1726255139720,0.0485,59926.0,59920.0,0.3608]
[1726255140428,0.0485,59926.0,59921.0,0.083413]
[1726255140633,0.0485,59926.0,59920.0,0.3608]
[1726255141226,0.0485,59926.0,59920.0,0.3748]
[1726255141414,0.0485,59926.0,59920.0,0.3888]
[1726255141617,0.0485,59926.0,59920.0,0.3748]
[1726255141920,0.0485,59926.0,59921.0,0.014]
[1726255142325,0.0495,59926.0,59921.0,0.014]
[1726255142825,0.3608,59922.0,59921.0,0.014]
[1726255143014,0.614212,59922.0,59921.0,0.014]
[1726255143220,0.5308,59922.0,59921.0,0.014]
[1726255143422,0.3608,59922.0,59921.0,0.014]
[1726255144132,0.05905461,59926.0,59921.0,0.028]
[1726255144518,0.05805461,59926.0,59921.0,0.01]
[1726255144723,0.001,59922.0,59921.0,0.024]
[1726255145531,0.05905461,59926.0,59921.0,0.019]
[1726255146421,0.001,59922.0,59921.0,0.016]
[1726255146626,0.001,59922.0,59921.0,0.006]
[1726255146937,0.001,59922.0,59921.0,0.016]
[1726255148518,0.14246161,59926.0,59921.0,0.019]
[1726255149226,0.14246161,59926.0,59921.0,0.01]
[1726255149227,0.14146161,59926.0,59921.0,0.01]
[1726255149423,0.001,59922.0,59921.0,0.019]
[1726255150231,0.14246161,59926.0,59921.0,0.019]
[1726255151625,0.14146161,59926.0,59921.0,0.01]
[1726255151830,0.001,59922.0,59921.0,0.019]
[1726255152427,0.05805461,59926.0,59921.0,0.01]
[1726255152735,0.05805461,59926.0,59921.0,0.179]
[1726255152736,0.05905461,59926.0,59921.0,0.179]
[1726255152922,0.17,59925.0,59921.0,0.019]
[1726255153425,0.001,59922.0,59921.0,0.019]
[1726255155324,0.17,59922.0,59921.0,0.019]
[1726255155729,1.354052,59922.0,59918.0,0.3608]
[1726255155930,0.5308,59919.0,59909.0,0.0039]
[1726255156128,0.5308,59919.0,59906.0,0.325]
[1726255156129,0.3608,59910.0,59906.0,0.325]
[1726255156332,0.36910866,59910.0,59903.0,0.083438]
[1726255156633,0.4062,59913.0,59903.0,0.444238]
[1726255156832,0.4147357,59913.0,59903.0,0.444238]
[1726255157222,0.4147357,59913.0,59909.0,0.006]
[1726255157223,0.0539357,59913.0,59909.0,0.006]
[1726255157423,0.0539357,59913.0,59909.0,0.08943]
[1726255157627,0.17,59910.0,59909.0,0.006]
[1726255157837,0.5308,59910.0,59903.0,0.3678]
[1726255158132,0.083431,59909.0,59903.0,0.3678]
[1726255158326,0.5308,59910.0,59903.0,0.007]
[1726255158327,0.17,59905.0,59903.0,0.007]
[1726255158531,0.17,59905.0,59895.0,0.0039]
[1726255158532,0.083447,59898.0,59895.0,0.0039]
[1726255158732,0.083447,59898.0,59889.0,0.0496]
[1726255158733,0.2169,59897.0,59885.0,0.0039]
[1726255158933,0.17,59890.0,59882.0,0.0504]
[1726255159224,0.3608,59891.0,59881.0,0.3608]
[1726255159533,0.3608,59891.0,59887.0,0.17]
[1726255160129,0.001,59890.0,59887.0,0.17]
[1726255160627,0.001,59890.0,59888.0,0.083459]
[1726255160833,0.001,59890.0,59887.0,0.17]
[1726255160834,0.37226632,59891.0,59881.0,0.090469]
[1726255161034,0.3608,59886.0,59881.0,0.083469]
[1726255161724,0.17,59884.0,59876.0,0.0923]
[1726255161942,0.3608,59886.0,59880.0,0.17]
[1726255162139,0.0484,59890.0,59882.0,0.3608]
[1726255162336,0.0494,59890.0,59880.0,0.25347]
[1726255162636,0.01061906,59890.0,59884.0,0.17]
[1726255162944,0.01161906,59890.0,59887.0,0.007]
[1726255163136,0.01061906,59890.0,59887.0,0.007]
[1726255163531,0.01061906,59890.0,59884.0,0.17]
[1726255164232,0.01061906,59890.0,59887.0,0.001]
[1726255164642,0.01061906,59890.0,59884.0,0.17]
[1726255164941,0.01061906,59890.0,59884.0,0.175]
[1726255165543,0.00961906,59890.0,59887.0,0.001]
[1726255165740,0.3608,59891.0,59887.0,0.001]
[1726255167036,0.37002768,59891.0,59887.0,0.001]
[1726255167238,0.37002768,59891.0,59887.0,0.002]
[1726255168440,0.0476,59904.0,59888.0,0.50092]
[1726255168638,0.3608,59909.0,59888.0,0.50092]
[1726255168639,0.0039,59902.0,59898.0,0.5308]
[1726255168836,0.3608,59909.0,59901.0,0.17]
[1726255169145,0.37031319,59909.0,59898.0,0.17]
[1726255169338,0.083434,59907.0,59899.0,0.083444]
[1726255170337,0.011,59902.0,59900.0,0.083442]
[1726255170531,0.011,59902.0,59901.0,0.253441]
[1726255170938,0.37031319,59909.0,59902.0,0.08344]
[1726255171129,0.37031319,59909.0,59899.0,0.007]
[1726255171130,0.00951319,59909.0,59908.0,0.083432]
[1726255171331,0.0455,59912.0,59906.0,0.17]
[1726255171636,0.0455,59912.0,59910.0,0.17]
[1726255171944,0.3608,59916.0,59915.0,0.083422]
[1726255172136,0.3608,59916.0,59915.0,0.253422]
[1726255172137,0.37041589,59916.0,59915.0,0.253422]
[1726255172339,0.00961589,59916.0,59915.0,0.253422]
[1726255172646,0.0039,59926.0,59916.0,0.08342]
[1726255172841,0.0022,59927.0,59920.0,0.17]
[1726255173138,0.00924373,59927.0,59921.0,0.3608]
[1726255173339,0.0455,59929.0,59921.0,0.3608]
[1726255173537,0.0455,59929.0,59920.0,0.17]
[1726255173940,0.003,59926.0,59921.0,0.3608]
[1726255174441,0.05493594,59929.0,59920.0,0.17]
[1726255174647,0.06293594,59929.0,59921.0,0.001]
[1726255175346,0.06293594,59929.0,59921.0,0.3618]
[1726255176041,0.06393594,59929.0,59921.0,0.3618]
[1726255176249,0.009,59926.0,59921.0,0.3618]
[1726255176443,0.17,59924.0,59921.0,0.001]
[1726255176748,0.083404,59922.0,59911.0,0.17]
[1726255176953,0.3608,59926.0,59921.0,0.001]
[1726255177367,0.3608,59926.0,59916.0,0.17]
[1726255177538,0.3788,59926.0,59921.0,0.001]
[1726255179153,0.3778,59926.0,59921.0,0.001]
[1726255179657,0.3688,59926.0,59920.0,0.17]
[1726255179839,0.3778,59926.0,59921.0,0.001]
[1726255180952,0.3768,59926.0,59920.0,0.5318]
[1726255181353,0.3698,59926.0,59920.0,0.5368]
[1726255182260,0.3698,59926.0,59924.0,0.17]
[1726255182553,0.3698,59926.0,59920.0,0.3668]
[1726255182554,0.3708,59926.0,59925.0,0.17]
[1726255182945,0.3778,59926.0,59921.0,0.001]
[1726255183158,0.17,59923.0,59920.0,0.001]
[1726255183343,0.3768,59926.0,59920.0,0.001]
[1726255183344,0.460199,59926.0,59920.0,0.001]
[1726255183751,0.465199,59926.0,59925.0,0.001]
[1726255183955,0.470199,59926.0,59925.0,0.001]
[1726255184140,0.970839,59926.0,59925.0,0.001]
[1726255184347,0.3738,59926.0,59920.0,0.17]
[1726255184548,0.3738,59926.0,59922.0,0.083404]
[1726255184549,0.008,59923.0,59922.0,0.083404]